bitfinex/quotes_ETHUSD_20241104
["timestamp","ask_amount","ask_price","bid_price","bid_amount"]
[1730700956739,0.08121585,2473.0,2472.6,0.10985485]
[1730700957162,4.12488585,2473.0,2472.6,0.10985485]
[1730700958674,0.08121585,2473.0,2472.6,4.15414485]
[1730700959232,4.12482585,2473.1,2472.6,4.95314485]
[1730700959639,4.12482585,2473.1,2472.6,0.90885485]
[1730700959839,4.12482585,2473.1,2472.6,0.10985485]
[1730700959840,4.80727,2473.0,2472.6,0.10985485]
[1730700960049,0.08121585,2472.9,2472.6,0.10985485]
[1730700960858,4.80727,2473.0,2472.6,0.10985485]
[1730700960859,4.88848585,2473.0,2472.6,0.10985485]
[1730700961082,0.84481585,2473.0,2472.6,4.15413485]
[1730700961372,0.7636,2473.0,2472.6,4.15413485]
[1730700961583,8.16843585,2473.1,2472.7,0.86939035]
[1730700961882,8.08722,2473.1,2472.7,0.97910944]
[1730700962039,0.08121585,2473.0,2472.7,0.97910944]
[1730700963143,4.04359,2473.1,2472.7,5.02326944]
[1730700963447,4.12480585,2473.1,2472.7,5.02326944]
[1730700963647,4.12480585,2473.1,2472.7,0.97910944]
[1730700964040,4.12480585,2473.1,2472.8,0.799]
[1730700964279,4.12480585,2473.1,2472.8,0.90858334]
[1730700964475,4.12480585,2473.1,2472.8,0.10958334]
[1730700964985,4.88858585,2473.0,2472.9,0.1094476]
[1730700965139,4.80737,2473.0,2472.5,4.04436]
[1730700965474,0.08121585,2472.9,2472.6,0.10985485]
[1730700965865,4.80737,2473.0,2472.6,0.10985485]
[1730700966357,4.88858585,2473.0,2472.6,0.10985485]
[1730700966957,0.84481585,2473.0,2472.6,0.10985485]
[1730700967354,4.88852585,2473.0,2472.6,0.10985485]
[1730700967549,4.88852585,2473.0,2472.6,0.69405714]
[1730700969353,4.04383,2472.9,2472.6,0.69405714]
[1730700969810,0.84481585,2473.0,2472.6,0.69405714]
[1730700970389,4.88850585,2473.0,2472.6,0.69405714]
[1730700970952,0.84481585,2473.0,2472.6,0.69405714]
[1730700971210,0.84481585,2473.0,2472.7,0.56272251]
[1730700971410,0.84481585,2473.0,2472.7,0.6724024]
[1730700972421,3.0,2473.4,2472.8,0.8173]
[1730700972422,7.80951,2473.4,2472.8,0.8173]
[1730700972576,7.80951,2473.4,2472.9,4.04373]
[1730700972577,4.12441585,2473.3,2472.9,4.04373]
[1730700972777,4.12441585,2473.3,2472.9,4.15309068]
[1730700973115,4.12441585,2473.3,2472.9,5.05453375]
[1730700973507,0.08121585,2473.3,2472.9,5.05453375]
[1730700974109,4.12442585,2473.3,2472.9,1.01080375]
[1730700974287,0.08121585,2473.3,2472.9,1.01080375]
[1730700974486,4.89049585,2473.6,2473.0,4.04356]
[1730700974718,0.08121585,2473.6,2473.1,4.86071]
[1730700975012,0.08121585,2473.6,2473.2,4.0433]
[1730700975179,0.08121585,2473.6,2473.2,0.10893393]
[1730700976094,4.80964,2473.4,2473.2,0.10893393]
[1730700976315,0.08121585,2473.3,2473.2,0.10893393]
[1730700976518,0.08121585,2473.3,2472.9,4.04371]
[1730700976716,0.08121585,2473.3,2473.2,0.10886495]
[1730700977227,0.08121585,2473.3,2472.9,4.04371]
[1730700977431,0.08121585,2473.3,2473.2,0.10886495]
[1730700977622,0.08121585,2473.3,2472.9,4.04371]
[1730700977796,0.08121585,2473.3,2473.2,0.10886495]
[1730700977995,0.08121585,2473.3,2472.9,4.04371]
[1730700978298,4.89087585,2473.4,2473.2,0.10886069]
[1730700978490,0.84771585,2473.4,2472.9,4.04371]
[1730700978691,0.84771585,2473.4,2473.3,0.108725]
[1730700978893,4.89074585,2473.4,2472.9,4.04371]
[1730700979103,0.84771585,2473.4,2473.3,0.108725]
[1730700979307,0.84771585,2473.4,2472.9,8.08739]
[1730700979537,0.84771585,2473.4,2473.3,0.108725]
[1730700980131,0.84771585,2473.4,2473.0,4.04367]
[1730700980337,0.84771585,2473.4,2473.3,0.10872244]
[1730700980636,0.08121585,2473.4,2473.3,0.10872244]
[1730700980934,4.04286,2473.5,2473.2,0.8173]
[1730700981145,4.04286,2473.5,2473.3,0.10872159]
[1730700981494,4.04286,2473.5,2473.0,4.04357]
[1730700981495,4.04303,2473.4,2473.0,0.8173]
[1730700981695,4.12424585,2473.4,2473.0,0.8173]
[1730700982110,0.08121585,2473.4,2473.0,5.751362]
[1730700982637,0.08121585,2473.4,2473.1,0.10898958]
[1730700985299,4.92562585,2473.4,2473.1,0.10898958]
[1730700985805,0.88261585,2473.4,2473.1,0.10898958]
[1730700986505,0.08121585,2473.4,2473.1,4.15248958]
[1730700986719,0.08121585,2473.4,2473.1,5.05384254]
[1730700986930,0.08121585,2473.6,2473.4,4.043]
[1730700987124,0.88261585,2474.0,2473.4,4.87473]
[1730700987433,0.88261585,2474.0,2473.5,4.63866238]
[1730700988436,0.88261585,2474.0,2473.5,4.63873238]
[1730700988437,4.92467585,2474.0,2473.5,4.63873238]
[1730700989121,0.88261585,2474.0,2473.5,4.63873238]
[1730700990221,4.92469585,2474.0,2473.5,4.63873238]
[1730700990599,4.04245,2473.8,2473.5,0.10844938]
[1730700990835,0.8014,2473.6,2473.2,4.04324]
[1730700991336,0.8014,2473.6,2473.2,4.1240966]
[1730700991528,0.88261585,2473.8,2473.3,4.04303]
[1730700992369,4.92497585,2473.8,2473.3,4.04303]
[1730700992546,4.92497585,2473.8,2473.4,0.808627]
[1730700992751,0.8014,2473.8,2473.4,4.851557]
[1730700992940,0.88261585,2474.0,2473.7,4.0425]
[1730700993136,0.8014,2474.0,2473.7,4.0425]
[1730700993484,0.8014,2474.0,2473.6,4.04252]
[1730700993779,0.88261585,2474.2,2473.8,4.04231]
[1730700997146,0.88261585,2474.2,2473.9,4.04217]
[1730700997347,0.88261585,2474.4,2473.9,4.87397]
[1730700997676,0.88261585,2474.4,2474.0,4.14959305]
[1730700997876,0.88261585,2474.4,2474.0,5.05194936]
[1730700998390,0.8014,2474.4,2474.0,5.05194936]
[1730701000157,0.08121585,2474.5,2474.1,4.04175]
[1730701000352,0.08121585,2474.6,2474.2,0.10739185]
[1730701000589,0.08121585,2474.6,2474.2,0.62062495]
[1730701000982,4.12235585,2474.6,2474.2,0.62062495]
[1730701002693,0.08121585,2474.6,2474.2,0.62062495]
[1730701002995,0.7713,2474.4,2474.2,0.62062495]
[1730701003289,0.85251585,2474.4,2474.2,0.10739185]
[1730701003660,0.85251585,2474.4,2474.0,4.04202]
[1730701003860,0.85251585,2474.4,2474.3,0.10722732]
[1730701004088,0.85251585,2474.4,2474.0,4.04202]
[1730701004295,0.85251585,2474.4,2474.3,0.10722732]
[1730701004499,0.85251585,2474.4,2474.0,4.04202]
[1730701004690,0.85251585,2474.4,2474.3,0.10722562]
[1730701004896,0.85251585,2474.4,2474.1,0.89159]
[1730701005066,0.85251585,2474.4,2474.3,0.10723073]
[1730701005694,0.85251585,2474.4,2474.1,0.89159]
[1730701005901,0.7713,2474.4,2474.3,0.10722987]
[1730701006080,0.85251585,2474.6,2474.3,0.50405099]
[1730701006403,0.85251585,2474.6,2474.3,0.61128001]
[1730701007079,4.04122,2474.5,2474.3,0.61128001]
[1730701007279,0.08121585,2474.4,2474.3,0.10722902]
[1730701007681,0.08121585,2474.4,2473.9,8.91599]
[1730701007893,0.08121585,2474.4,2474.3,0.10722392]
[1730701008064,0.08121585,2474.4,2473.9,8.91598]
[1730701008405,0.08121585,2474.4,2473.7,5.309262]
[1730701008406,0.7713,2474.3,2473.7,5.309262]
[1730701008605,4.89406585,2474.3,2473.8,4.8732762]
[1730701009103,0.85251585,2474.3,2473.8,4.8732762]
[1730701009712,0.85251585,2474.3,2473.9,4.04216]
[1730701009904,0.85251585,2474.3,2474.0,0.89154362]
[1730701010086,0.7713,2474.3,2474.0,4.93347362]
[1730701010506,0.7713,2474.3,2474.0,4.04193]
[1730701010807,0.7713,2474.3,2474.0,4.04202]
[1730701011672,0.7713,2474.3,2473.9,4.04206]
[1730701011906,0.08121585,2474.2,2473.7,8.86424]
[1730701012078,0.08121585,2474.2,2473.8,4.04235]
[1730701012280,0.08121585,2474.2,2473.9,0.886416]
[1730701012589,0.08121585,2474.2,2474.0,0.10760685]
[1730701015215,4.81293,2474.3,2474.0,0.10760685]
[1730701015902,0.08121585,2474.2,2474.0,0.10760685]
[1730701016406,4.81293,2474.3,2474.0,0.10760685]
[1730701016978,0.08121585,2474.2,2474.0,0.10760685]
[1730701017278,4.81293,2474.3,2474.0,0.10760685]
[1730701019013,0.08121585,2474.2,2474.0,0.10760685]
[1730701020416,4.12295585,2474.2,2474.0,0.10760685]
[1730701020710,0.08121585,2474.2,2473.8,4.04236]
[1730701020875,0.08121585,2474.2,2474.1,0.10747635]
[1730701021411,0.08121585,2474.2,2473.8,5.228776]
[1730701021713,0.08121585,2474.2,2474.1,0.10748061]
[1730701021907,0.08121585,2474.2,2473.8,4.04236]
[1730701022115,0.08121585,2474.2,2474.1,0.10748061]
[1730701022416,0.08121585,2474.2,2473.8,4.04236]
[1730701022717,0.08121585,2474.2,2474.1,0.10748061]
[1730701022917,0.08121585,2474.2,2473.8,5.228776]
[1730701023121,0.08121585,2474.2,2474.1,0.10748061]
[1730701023410,0.08121585,2474.2,2473.7,8.86423]
[1730701023608,4.12292585,2474.2,2474.1,0.10748061]
[1730701023817,4.12292585,2474.2,2473.3,4.82248]
[1730701023818,4.04187,2474.1,2473.3,4.82248]
[1730701024114,3.57063544,2474.2,2473.3,4.82248]
[1730701024115,4.81369,2473.8,2473.3,4.82248]
[1730701024285,0.08121585,2473.7,2473.3,4.82248]
[1730701024486,4.12383585,2473.7,2473.3,0.886588]
[1730701024701,0.7713,2473.5,2473.2,4.04334]
[1730701024988,4.0422,2473.9,2473.4,4.043]
[1730701025191,0.08121585,2473.8,2473.4,4.043]
[1730701025712,0.08121585,2473.8,2473.3,8.0862]
[1730701026012,0.08121585,2473.8,2473.4,4.82226]
[1730701026522,0.08121585,2473.8,2473.4,0.7794]
[1730701026683,4.12360585,2473.8,2473.4,0.7794]
[1730701027711,4.12360585,2473.8,2473.5,0.10834039]
[1730701028309,0.7713,2473.6,2473.2,4.04329]
[1730701028513,0.85251585,2473.6,2473.2,4.929901]
[1730701028678,0.7713,2473.6,2473.2,4.929901]
[1730701028881,0.08121585,2473.7,2473.3,4.04317]
[1730701029084,0.08121585,2473.7,2473.4,4.04297]
[1730701029502,0.08121585,2473.7,2473.4,4.9402451]
[1730701029697,0.08121585,2473.7,2473.4,1.6663751]
[1730701032324,0.08121585,2473.7,2473.4,5.7093651]
[1730701033720,0.08121585,2473.7,2473.4,1.6663751]
[1730701037103,0.7513,2473.8,2473.4,5.7093651]
[1730701037695,0.7513,2473.8,2473.4,1.6663751]
[1730701038401,0.08121585,2473.7,2473.4,1.6663751]
[1730701040928,0.08121585,2473.7,2473.4,5.7093451]
[1730701042027,0.08121585,2473.7,2473.4,1.6663751]
[1730701042530,0.08121585,2473.7,2473.5,0.10837699]
[1730701046717,0.08121585,2473.9,2473.5,0.10837699]
[1730701046920,0.08121585,2473.9,2473.5,4.15114699]
[1730701047133,0.08121585,2473.9,2473.6,4.04261]
[1730701047448,0.08121585,2473.9,2473.6,4.9388957]
[1730701047608,0.08121585,2473.9,2473.7,0.10810567]
[1730701048509,0.63302956,2474.0,2473.8,4.82088]
[1730701048732,0.7991,2474.2,2473.9,0.1078344]
[1730701048733,0.08121585,2474.1,2473.9,0.1078344]
[1730701050047,4.12310585,2474.1,2473.9,0.1078344]
[1730701050344,4.12310585,2474.1,2473.5,4.04274]
[1730701050345,4.84113,2474.0,2473.5,4.04274]
[1730701050509,0.08121585,2473.9,2473.5,4.04274]
[1730701051255,0.08121585,2473.9,2473.2,4.82192]
[1730701051256,0.7991,2473.7,2473.2,4.82192]
[1730701051411,0.88031585,2473.7,2473.2,4.82192]
[1730701051607,0.88031585,2473.7,2473.3,1.05152517]
[1730701052212,0.88031585,2473.7,2473.3,5.09467517]
[1730701052408,0.7991,2473.7,2473.3,9.13775517]
[1730701053514,0.7991,2473.7,2473.3,9.13769517]
[1730701054250,0.7991,2473.7,2473.3,5.09460517]
[1730701054971,0.88031585,2473.7,2473.3,5.09460517]
[1730701057558,0.88031585,2473.7,2473.4,0.10847778]
[1730701059327,0.49226859,2473.6,2473.1,4.04337]
[1730701059566,0.8021,2473.4,2473.2,0.10875171]
[1730701059728,0.08121585,2473.3,2473.2,0.10875171]
[1730701060042,0.08121585,2473.3,2473.0,0.3014311]
[1730701060244,0.88331585,2473.4,2473.2,0.10879766]
[1730701060447,0.88331585,2473.4,2473.3,0.10866196]
[1730701061363,0.88331585,2473.4,2473.0,4.04366]
[1730701061521,0.88331585,2473.4,2473.3,0.10866196]
[1730701061720,0.88331585,2473.4,2473.0,4.04366]
[1730701061937,0.88331585,2473.4,2473.1,0.10893337]
[1730701064363,0.88331585,2473.4,2473.2,0.10880617]
[1730701064860,0.88331585,2473.4,2472.9,8.50984006]
[1730701065050,0.88331585,2473.4,2473.3,0.10867048]
[1730701065551,0.88331585,2473.4,2472.9,4.46609006]
[1730701065756,0.88331585,2473.4,2473.3,0.10867048]
[1730701065935,0.88331585,2473.4,2472.9,4.46609006]
[1730701066258,0.88331585,2473.4,2473.0,0.1090776]
[1730701066559,0.88331585,2473.4,2473.0,4.1527076]
[1730701066767,0.88331585,2473.4,2473.1,4.04347]
[1730701067055,0.8021,2473.4,2473.1,4.04347]
[1730701067264,0.88331585,2473.4,2473.2,0.10880788]
[1730701068267,0.8021,2473.4,2473.2,0.10880788]
[1730701069031,0.8021,2473.4,2473.0,4.34502837]
[1730701069348,0.8021,2473.4,2473.0,5.09938734]
[1730701069743,0.8021,2473.4,2473.1,0.10894358]
[1730701070452,4.12439585,2473.3,2473.1,0.10894358]
[1730701070768,4.12439585,2473.3,2472.7,4.04408]
[1730701070769,4.92649585,2473.3,2473.2,0.10881639]
[1730701070976,5.82344844,2473.3,2473.2,0.10881639]
[1730701071259,5.82344844,2473.3,2472.8,4.52153075]
[1730701071462,5.82344844,2473.3,2473.2,0.10881639]
[1730701071664,5.82344844,2473.3,2472.8,4.04398]
[1730701071833,5.82344844,2473.3,2473.2,0.10881639]
[1730701072034,5.82344844,2473.3,2472.8,4.04398]
[1730701072035,1.78026844,2473.3,2472.9,4.04374]
[1730701072264,0.88331585,2473.3,2473.2,0.10881639]
[1730701072967,3.8021,2473.5,2473.0,4.85749]
[1730701073264,0.08121585,2473.4,2473.2,0.10882917]
[1730701073453,0.08121585,2473.4,2473.1,4.15245487]
[1730701073660,0.08121585,2473.4,2473.3,0.10869347]
[1730701074047,0.08121585,2473.4,2473.0,4.85746]
[1730701074237,0.08121585,2473.4,2473.3,0.10869347]
[1730701074437,0.08121585,2473.4,2473.0,4.85746]
[1730701074647,0.08121585,2473.4,2473.3,0.10869347]
[1730701074833,0.8021,2473.5,2473.0,4.85746]
[1730701075057,0.8021,2473.5,2473.3,0.10868836]
[1730701075058,0.08121585,2473.4,2473.3,0.10868836]
[1730701075256,0.08121585,2473.4,2473.1,0.65076611]
[1730701075472,0.08121585,2473.4,2473.3,0.10868666]
[1730701075634,0.08121585,2473.4,2473.2,0.10882235]
[1730701075838,0.88331585,2473.5,2473.3,0.10868666]
[1730701076261,0.88331585,2473.5,2473.1,4.69418611]
[1730701076752,0.88331585,2473.5,2473.4,0.10855097]
[1730701077038,0.88331585,2473.5,2473.1,4.69418611]
[1730701077239,0.88331585,2473.5,2473.4,0.10855097]
[1730701077452,0.88331585,2473.5,2473.1,4.69418611]
[1730701077655,0.88331585,2473.5,2473.4,0.10855097]
[1730701077872,0.88331585,2473.5,2473.1,4.69418611]
[1730701078038,0.88331585,2473.5,2473.4,0.10855097]
[1730701078239,0.88331585,2473.5,2473.1,4.69418611]
[1730701078445,0.88331585,2473.5,2473.4,0.10855097]
[1730701078633,0.88331585,2473.5,2473.1,4.69418611]
[1730701078861,0.88331585,2473.5,2473.4,0.10855097]
[1730701079045,0.88331585,2473.5,2473.1,4.69418611]
[1730701079254,0.88331585,2473.5,2473.4,0.10855097]
[1730701079762,0.88331585,2473.5,2473.1,4.69418611]
[1730701079966,0.88331585,2473.5,2473.4,0.10855097]
[1730701080166,4.92620585,2473.5,2473.1,0.65076611]
[1730701080478,4.92620585,2473.5,2473.4,0.10855097]
[1730701080678,4.92620585,2473.5,2473.0,4.85746]
[1730701080836,4.92620585,2473.5,2473.4,0.10854501]
[1730701081038,4.92620585,2473.5,2473.0,4.85746]
[1730701081234,4.92620585,2473.5,2473.4,0.10854758]
[1730701081235,0.88331585,2473.5,2473.4,0.10854758]
[1730701081474,0.88331585,2473.5,2473.1,4.0435]
[1730701081981,0.88331585,2473.5,2473.2,0.10882236]
[1730701082983,0.8021,2473.9,2473.3,2.46410107]
[1730701083140,0.88331585,2473.9,2473.4,4.04291]
[1730701083468,0.88331585,2473.9,2473.5,0.10841276]
[1730701083882,0.88331585,2473.9,2473.5,4.15112276]
[1730701084823,0.8021,2473.9,2473.5,4.15112276]
[1730701085122,0.08121585,2474.0,2473.6,4.85658]
[1730701085415,0.08121585,2474.0,2473.7,0.10812271]
[1730701086381,4.12332585,2474.0,2473.7,0.10812271]
[1730701087385,0.08121585,2474.0,2473.7,0.10812271]
[1730701089217,0.08121585,2474.0,2473.7,1.28048003]
[1730701089695,3.63293655,2474.4,2473.9,4.04219]
[1730701089696,0.7685,2474.3,2473.9,4.04219]
[1730701089897,0.63293655,2474.4,2474.0,4.04191]
[1730701090099,0.84971585,2474.5,2474.0,4.80274811]
[1730701090409,5.4422249,2474.8,2474.1,0.0808325]
[1730701090580,0.08121585,2474.7,2474.3,4.04142]
[1730701090783,4.80933,2474.8,2474.3,4.04142]
[1730701091013,8.85018,2474.8,2474.4,0.10714877]
[1730701091420,0.08121585,2474.7,2474.4,0.10714877]
[1730701091606,4.80933,2474.8,2474.4,0.10714877]
[1730701093488,8.8502,2474.8,2474.4,0.10714877]
[1730701093727,8.8502,2474.8,2474.4,0.605928]
[1730701094634,0.08121585,2474.7,2474.4,0.605928]
[1730701094790,4.04121,2474.6,2474.4,0.10714877]
[1730701094991,4.12243585,2474.5,2474.4,0.10714877]
[1730701095318,4.12243585,2474.5,2474.0,4.80042]
[1730701095523,4.12243585,2474.5,2474.1,0.10740659]
[1730701098537,4.0414,2474.4,2474.1,0.10740659]
[1730701099045,0.08121585,2474.3,2474.1,0.10740659]
[1730701099343,8.08287,2474.4,2473.8,4.80075]
[1730701099691,4.12277585,2474.3,2473.9,1.49190611]
[1730701099943,4.81023,2474.2,2473.9,0.10767781]
[1730701100940,8.85204,2474.2,2473.6,4.801]
[1730701101437,8.85204,2474.2,2473.7,0.1079695]
[1730701101438,4.04222,2473.9,2473.7,0.1079695]
[1730701101628,0.84971585,2473.8,2473.7,0.1079695]
[1730701101945,0.7685,2473.8,2473.7,0.10798312]
[1730701102249,0.7685,2473.8,2473.4,0.7584]
[1730701102416,0.7685,2473.8,2473.7,0.10798312]
[1730701102615,0.7685,2473.8,2473.4,0.7584]
[1730701102835,0.7685,2473.8,2473.7,0.10798312]
[1730701103021,0.7685,2473.8,2473.4,1.28074866]
[1730701103022,0.7685,2473.8,2473.4,0.7584]
[1730701103227,0.7685,2473.8,2473.7,0.10798312]
[1730701103458,0.84971585,2473.8,2473.3,4.46508658]
[1730701103662,4.89207585,2473.8,2473.7,0.10798312]
[1730701103966,4.89207585,2473.8,2473.7,0.10800014]
[1730701104168,4.89207585,2473.8,2473.3,4.04305]
[1730701104490,4.04266,2473.7,2473.4,0.10841053]
[1730701104785,0.8027,2473.5,2473.1,4.04341]
[1730701106801,0.08121585,2473.4,2472.9,0.801]
[1730701106944,4.84612,2473.2,2472.7,4.84506]
[1730701107182,4.92733585,2473.2,2472.7,4.04406]
[1730701107448,4.0436,2473.1,2472.6,4.04432]
[1730701108851,4.92734585,2473.2,2472.7,4.04414]
[1730701109458,4.92734585,2473.2,2472.6,0.08087553]
[1730701109459,0.88391585,2473.2,2472.6,0.08087553]
[1730701109758,4.04351,2473.1,2472.6,0.08087553]
[1730701110260,1.37663144,2473.2,2472.6,4.12506553]
[1730701110458,4.04351,2473.1,2472.6,4.12506553]
[1730701111472,4.04351,2473.1,2472.6,4.04419]
[1730701111676,4.04351,2473.1,2472.6,4.12506547]
[1730701114185,4.92731585,2473.2,2472.7,4.04415]
[1730701114733,0.88391585,2473.2,2472.6,0.08087547]
[1730701114852,4.04354,2473.1,2472.6,4.12505547]
[1730701115051,4.04354,2473.1,2472.6,5.44698642]
[1730701117400,4.04354,2473.1,2472.7,1.65052061]
[1730701117604,4.04354,2473.1,2472.7,1.75960427]
[1730701118676,8.08714,2473.1,2472.7,1.75960427]
[1730701118877,4.04368,2473.0,2472.7,0.10908366]
[1730701119303,0.7594,2472.9,2472.5,6.91800899]
[1730701119508,0.7594,2472.9,2472.8,0.10895644]
[1730701119671,0.7594,2472.9,2472.5,6.91800899]
[1730701119871,0.7594,2472.9,2472.8,0.10895644]
[1730701120119,0.7594,2472.9,2472.5,6.11700899]
[1730701120702,4.80333,2472.9,2472.6,0.10922795]
[1730701120919,4.80356,2472.7,2472.6,0.10922795]
[1730701121407,8.08878,2472.6,2472.1,5.77645975]
[1730701121906,4.04434,2472.6,2472.1,9.82150975]
[1730701122252,0.84061585,2472.7,2472.1,5.69557061]
[1730701122417,4.04353,2473.1,2472.6,4.04432]
[1730701122572,4.80293,2473.1,2472.6,4.04432]
[1730701122769,4.88414585,2473.1,2472.6,4.12519767]
[1730701123604,4.88414585,2473.1,2472.6,4.04432]
[1730701124207,4.88414585,2473.1,2472.6,5.09717706]
[1730701124780,4.0437,2473.0,2472.6,1.05285706]
[1730701125708,4.0437,2473.0,2472.6,5.09716706]
[1730701125912,4.0437,2473.0,2472.6,1.05285706]
[1730701126522,0.84061585,2473.1,2472.6,1.05285706]
[1730701126828,0.7594,2473.1,2472.7,0.34924777]
[1730701127297,4.80296,2473.1,2472.7,0.34924777]
[1730701130004,4.88417585,2473.1,2472.7,0.34924777]
[1730701130607,0.84061585,2473.1,2472.7,0.34924777]
[1730701130809,4.04368,2473.0,2472.5,2.43962061]
[1730701130994,4.04368,2473.0,2472.5,6.48407061]
[1730701131198,0.84061585,2473.1,2472.6,4.04431]
[1730701131832,0.7594,2473.1,2472.6,8.16941762]
[1730701132038,0.7594,2473.1,2472.7,1.06090382]
[1730701132335,4.80292,2473.1,2472.7,1.06090382]
[1730701132530,4.80292,2473.1,2472.8,0.10903476]
[1730701132734,4.80292,2473.1,2472.7,1.06090382]
[1730701132935,4.80292,2473.1,2472.8,0.10903476]
[1730701133135,4.80292,2473.1,2472.7,1.06090382]
[1730701133337,4.80292,2473.1,2472.8,0.10903476]
[1730701133506,4.0437,2473.0,2472.7,1.06090382]
[1730701133839,4.0437,2473.0,2472.8,0.10903476]
[1730701134042,4.88412585,2473.1,2472.8,0.10903476]
[1730701134335,4.88412585,2473.1,2472.9,0.10889902]
[1730701134536,4.88412585,2473.1,2472.6,4.04424]
[1730701134734,4.88412585,2473.1,2472.7,0.10917051]
[1730701135140,0.84061585,2473.1,2472.7,0.10917051]
[1730701135439,4.04368,2473.0,2472.7,0.10917051]
[1730701135933,0.84061585,2473.1,2472.7,0.10917051]
[1730701136097,4.88412585,2473.1,2472.7,0.10917051]
[1730701136501,0.84061585,2473.1,2472.7,0.10917051]
[1730701136730,4.04367,2473.0,2472.7,0.10917051]
[1730701137510,0.08121585,2472.9,2472.7,0.10917051]
[1730701137715,4.04383,2472.9,2472.4,4.04464]
[1730701137921,4.04383,2472.9,2472.5,0.1094429]
[1730701138233,8.08781,2472.9,2472.5,0.1094429]
[1730701138746,4.04383,2472.9,2472.5,0.1094429]
[1730701139401,8.08777,2472.9,2472.5,0.1094429]
[1730701139800,4.04383,2472.9,2472.5,0.1094429]
[1730701141544,4.80301,2473.1,2472.5,1.84084849]
[1730701141746,4.80301,2473.1,2472.7,0.7891]
[1730701141901,4.80301,2473.1,2472.8,0.10903817]
[1730701142236,4.80301,2473.1,2472.7,0.7891]
[1730701142540,0.08121585,2473.0,2472.8,0.10905181]
[1730701142752,0.08121585,2473.0,2472.5,7.15155018]
[1730701143040,0.08121585,2473.0,2472.6,0.10931906]
[1730701145384,0.08121585,2473.0,2472.6,1.23984798]
[1730701145988,4.12490585,2473.0,2472.6,1.23984798]
[1730701146143,4.803,2473.1,2472.6,4.15354906]
[1730701147898,4.803,2473.1,2472.6,4.15360906]
[1730701148468,4.803,2473.1,2472.7,0.30210422]
[1730701148787,4.04375,2473.0,2472.8,0.10904585]
[1730701148963,4.803,2473.1,2472.6,4.5228054]
[1730701149282,4.803,2473.1,2472.7,0.41139987]
[1730701149599,8.84663,2473.1,2472.7,0.1091816]
[1730701149760,8.84665,2473.1,2472.7,0.1091816]
[1730701149966,4.04376,2473.0,2472.7,0.1091816]
[1730701150294,4.12497585,2473.0,2472.7,0.41142451]
[1730701150489,4.12497585,2473.0,2472.7,0.28565678]
[1730701150854,4.12497585,2473.0,2472.7,0.1091816]
[1730701151789,4.12497585,2473.0,2472.6,1.22701972]
[1730701151963,4.12497585,2473.0,2472.7,0.41161322]
[1730701152294,4.12497585,2473.0,2472.7,0.10918075]
[1730701152694,4.12497585,2473.0,2472.6,1.05072956]
[1730701152861,4.12497585,2473.0,2472.8,0.109045]
[1730701153062,4.12497585,2473.0,2472.7,0.4791327]
[1730701153063,4.81413,2472.9,2472.7,0.10918075]
[1730701153394,4.0444,2472.6,2472.4,0.84387368]
[1730701153557,4.0444,2472.6,2472.5,1.17990156]
[1730701153757,4.0444,2472.6,2472.5,0.4792453]
[1730701154170,4.12561585,2472.6,2472.5,0.4792453]
[1730701155002,4.12561585,2472.6,2472.5,0.30259473]
[1730701155173,4.0444,2472.6,2472.5,0.47921569]
[1730701155369,4.0444,2472.6,2472.5,0.17663276]
[1730701155695,4.0444,2472.6,2472.5,0.47920326]
[1730701155892,4.0444,2472.6,2472.5,0.3025705]
[1730701156194,4.0444,2472.6,2472.5,0.47920326]
[1730701156365,4.0444,2472.6,2472.5,0.3025705]
[1730701156704,4.0444,2472.6,2472.5,0.47915752]
[1730701157001,4.0444,2472.6,2472.5,0.3025705]
[1730701157299,0.7703,2472.7,2472.5,0.47915752]
[1730701157498,0.7703,2472.7,2472.4,0.17658702]
[1730701157674,0.7703,2472.7,2472.5,0.47903155]
[1730701157870,4.81447,2472.7,2472.4,0.17658702]
[1730701158074,4.81447,2472.7,2472.5,0.47903162]
[1730701158391,4.81447,2472.7,2472.4,0.17658702]
[1730701158593,4.81447,2472.7,2472.5,0.17655985]
[1730701158796,4.81447,2472.7,2472.3,3.54532295]
[1730701158797,4.81447,2472.7,2472.4,0.17655985]
[1730701158997,4.81447,2472.7,2472.5,0.17655985]
[1730701159200,4.81447,2472.7,2472.4,0.17655985]
[1730701159365,4.81447,2472.7,2472.5,0.47898411]
[1730701159567,4.81447,2472.7,2472.5,0.17655985]
[1730701159788,0.7703,2472.9,2472.5,2.22746136]
[1730701160029,0.7703,2473.2,2472.7,5.69459061]
[1730701160337,1.25976459,2473.2,2472.8,5.222888]
[1730701160523,4.81367,2473.2,2472.9,0.30238712]
[1730701160836,4.81367,2473.2,2472.8,0.17647233]
[1730701161035,0.08121585,2473.3,2472.9,0.47873057]
[1730701161238,4.81342,2473.4,2473.0,0.47871199]
[1730701161441,4.81342,2473.4,2473.0,0.17644582]
[1730701161735,0.08121585,2473.3,2473.0,0.17644582]
[1730701161933,3.85151585,2473.4,2472.9,10.56519061]
[1730701162101,0.85151585,2473.4,2473.0,0.17641708]
[1730701162300,0.85151585,2473.4,2472.9,7.78893809]
[1730701162301,4.12423585,2473.4,2472.9,7.78893809]
[1730701162501,4.12425585,2473.4,2473.0,2.33235903]
[1730701162701,4.89455585,2473.4,2473.1,0.30217384]
[1730701162938,4.89455585,2473.4,2473.0,0.28148971]
[1730701163141,4.04318,2473.3,2473.1,0.10493767]
[1730701163345,4.12455585,2473.2,2473.1,0.10493767]
[1730701163751,4.12455585,2473.2,2472.9,0.17640579]
[1730701164060,4.12455585,2473.2,2473.0,0.10505749]
[1730701164263,4.04318,2473.3,2473.0,0.10505749]
[1730701164561,4.04318,2473.3,2473.0,0.4071757]
[1730701164767,8.08645,2473.3,2473.0,0.4071757]
[1730701165061,4.04318,2473.3,2473.0,0.4071757]
[1730701165358,8.08651,2473.3,2473.0,0.4071757]
[1730701165574,8.08651,2473.3,2473.0,0.10505749]
[1730701165939,8.08651,2473.3,2473.0,0.40715905]
[1730701166247,4.04343,2473.2,2473.0,0.40715905]
[1730701166431,4.0435,2473.1,2473.0,0.10505749]
[1730701166858,4.0435,2473.1,2472.9,0.30211584]
[1730701167054,4.0435,2473.1,2473.0,0.10505749]
[1730701167420,4.0435,2473.1,2472.8,0.1763775]
[1730701167662,4.0435,2473.1,2473.0,0.10505749]
[1730701167961,4.0435,2473.1,2473.0,0.10504242]
[1730701168166,4.0435,2473.1,2472.8,0.1763775]
[1730701168338,4.0435,2473.1,2472.9,0.10517815]
[1730701169137,4.85247,2473.0,2472.8,0.17638304]
[1730701169362,4.93368585,2473.0,2472.9,0.10518066]